Cogmind - Beta 11 @@@ ROGUE MODE // 2022.03.27 @ 18:22:30 Player: maxwell Result: Destroyed by H-61 Shepherd with Heavy Assault Cannon Performance ------------- Evolutions (4) 2000 Regions Visited (14) 2800 Robots Destroyed (185) 925 Value Destroyed (6191) 6191 Prototype IDs (12) 240 Alien Tech Used (0) 0 Bonus (1486) 1486 TOTAL SCORE: 13642 Bonus ------- High Alert Combat Kills 613 Follower Combat Kills 2799 A7 Reached Mainframe 300 Friendly Fire -2226 Cogmind --------- Core Integrity 0/850 Matter 300/300 Energy 99/100 System Corruption 22% Temperature Cool (0) Movement Core (50) Location -6/Hub_04(d) Parts ------- > --- POWER (1) -------- (None) > --- PROPULSION (6) --- (None) > --- UTILITY (4) ------ (None) > --- WEAPON (4) ------- (None) > --- INVENTORY (5) ---- Fission Core Advanced Sensor Array Advanced Signal Interpreter Microactuators Heavy Rocket Launcher Peak State ------------ > --- POWER ------------ Angular Momentum Engine > --- PROPULSION ------- Carbon-fiber Leg Carbon-fiber Leg Carbon-fiber Leg Flexi-carbon Leg Flexi-carbon Leg Myomer Leg > --- UTILITY ---------- High-capacity Storage Unit Melee Analysis Suite Melee Analysis Suite Centrium Medium Armor Plating > --- WEAPON ----------- Advanced Variable Charge Gun Ripper Ripper Phasing Sabre > --- INVENTORY -------- Fission Core Huge Storage Unit Structural Scanner Advanced Sensor Array Improved Signal Interpreter Advanced Signal Interpreter Experimental Targeting Computer Microactuators Transmission Jammer Advanced ECM Suite Reaction Control System Centrium Medium Armor Plating Authchip [Storage] Shock Bomb Launcher Advanced EMP Blaster Heavy Rocket Launcher Spear Spear [Rating: 76] Favorites ----------- Power Improved Ion Engine Engine Improved Ion Engine Power Core Micro Nuclear Core Propulsion Titanium Leg Treads Light Treads Leg Titanium Leg Wheel Wheel Hover Unit Backup Propulsion I Utility High-capacity Storage Unit Device Coolant Injector Storage High-capacity Storage Unit Processor Melee Analysis Suite Hackware Hacking Suite Protection Centrium Medium Armor Plating Weapon Heavy Assault Rifle Energy Gun Pulse Rifle Energy Cannon Advanced Beam Cannon Ballistic Gun Heavy Assault Rifle Ballistic Cannon Flak Cannon Launcher Advanced EMP Blaster Impact Weapon Great Maul Slashing Weapon Ripper Piercing Weapon Spear Build | -11 -10 -10 -9 -9 -9 -8 -8 -8 -7 -6 -6 -6 -6 -6 ------- Run | Scr Mat Min Mat Min Exi Min Mat Sto Fac Fac Ext Cet Arc Hub Slots Evolved 8 | . . . 2 . . . 2 . 2 2 . . . . Power . | . . . . . . . . . . . . . . . Propulsion 4 | . . . 1 . . . 1 . 2 . . . . . Utility 2 | . . . . . . . 1 . . 1 . . . . Weapon 2 | . . . 1 . . . . . . 1 . . . . Parts Attached 181 | 6 7 3 15 . . 4 20 13 25 26 33 13 4 12 Power 15 | 1 . 1 1 . . 1 2 2 3 . 2 . . 2 Engine 11 | 1 . 1 1 . . 1 2 2 1 . 1 . . 1 Core 4 | . . . . . . . . . 2 . 1 . . 1 Reactor . | . . . . . . . . . . . . . . . Propulsion 68 | 2 3 . 7 . . . 6 3 13 12 13 3 . 6 Treads 7 | . 2 . 4 . . . . . 1 . . . . . Leg 55 | 2 1 . 3 . . . 6 3 6 12 13 3 . 6 Wheel 6 | . . . . . . . . . 6 . . . . . Hover . | . . . . . . . . . . . . . . . Flight . | . . . . . . . . . . . . . . . Utility 37 | 1 3 . 1 . . . 5 . 1 8 9 2 4 3 Device 21 | . . . . . . . 3 . 1 5 6 . 3 3 Storage 6 | 1 1 . 1 . . . 1 . . 1 . 1 . . Processor 6 | . 2 . . . . . . . . 2 2 . . . Hackware 3 | . . . . . . . 1 . . . 1 . 1 . Protection 1 | . . . . . . . . . . . . 1 . . Artifact . | . . . . . . . . . . . . . . . Weapon 61 | 2 1 2 6 . . 3 7 8 8 6 9 8 . 1 Energy Gun 12 | . . . . . . . 5 3 2 . . 2 . . Energy Cannon 2 | . . . . . . . . 2 . . . . . . Ballistic Gun 17 | 2 1 2 5 . . 2 1 1 1 2 . . . . Ballistic Cannon 3 | . . . . . . . 1 . 2 . . . . . Launcher 9 | . . . 1 . . 1 . 2 1 . 1 3 . . Special Weapon . | . . . . . . . . . . . . . . . Impact Weapon 1 | . . . . . . . . . . 1 . . . . Slashing Weapon 7 | . . . . . . . . . 1 . 5 1 . . Piercing Weapon 10 | . . . . . . . . . 1 3 3 2 . 1 Special Melee Weapon . | . . . . . . . . . . . . . . . Unidentified Prototypes 8 | . . . . . . . 2 4 . . . 2 . . Corrupted Parts 7 | . . . . . . . . . . . 4 2 . 1 System Corruption 37 | . . . . . . . . . . . 19 13 . 5 Parts Lost 85 | . 2 1 3 . . 2 7 . 21 11 16 3 1 18 Power 9 | . . 1 1 . . 1 1 . 2 . 1 . . 2 Propulsion 51 | . 1 . 2 . . . 2 . 11 10 10 3 1 11 Utility 5 | . . . . . . . . . . . 1 . . 4 Weapon 20 | . 1 . . . . 1 4 . 8 1 4 . . 1 Highest Loss Streak 9 | . 1 1 1 . . 1 2 . 5 4 7 2 1 9 To Critical Strikes 3 | . . . . . . . . . 1 . . 1 . 1 Average Slot Usage (%) 93 | . 97 98 98 100 100 97 95 99 73 94 95 94 93 79 Engine 6 | . 14 12 10 11 11 8 8 9 2 . . 6 6 . Core 1 | . . . . . . . . . . 6 5 . . 2 Treads 4 | . 14 28 17 . . . . . 1 . . . . . Leg 25 | . 13 . 15 33 33 33 35 36 20 19 37 34 33 23 Wheel 3 | . . . . . . . . . 3 16 . . . . Device 3 | . . . . . . . 4 9 6 4 6 . 4 3 Storage 8 | . 14 14 11 11 11 11 9 9 7 5 6 7 6 6 Processor 7 | . 11 14 11 11 11 11 6 . . 8 6 13 13 7 Hackware 3 | . . . . . . . 6 9 7 5 3 . . 6 Energy Gun 3 | . . . . . . . 9 23 12 . . 1 . . Ballistic Gun 12 | . 28 28 31 33 33 32 10 . 1 . . . . . Slashing Weapon 4 | . . . . . . . . . . 5 13 17 20 20 Piercing Weapon 4 | . . . . . . . . . . 13 10 2 6 5 Naked Turns 1 | . . . . . . . . . . . . . . 1 Heaviest Build 138 | 12 27 29 96 96 96 98 138 61 64 67 70 78 72 65 Greatest Support 110 | 20 40 40 66 51 51 51 68 61 72 100 100 110 110 105 Greatest Overweight (x) 17 | . 1 . 11 1 1 1 2 1 14 6 4 1 . 17 Average Overweight (x) . | . . . . 1 1 1 . . . . . . . . Largest Inventory Capacity 25 | 8 15 15 25 25 25 25 25 20 20 20 20 20 20 20 Average Capacity 19 | 6 9 15 16 25 25 25 20 20 20 19 20 20 20 19 Most Carried 23 | 3 15 15 15 22 23 23 22 20 20 20 20 20 19 19 Average Carried 17 | . 7 15 13 15 21 22 19 19 18 19 18 19 18 17 Final Capacity 25 | 8 15 15 25 25 25 25 20 20 20 20 20 20 20 5 Final Carried 23 | 3 15 15 14 22 23 23 20 19 19 18 19 18 19 5 Class Distribution -------------------- 38% | Gunner 30% | Mutant 18% | Commander-Mutant 9% | Scavenger-Mutant Dominant Class ---------------- Mutant | -10/Materials Mutant | -10/Mines Gunner | -9/Materials Gunner | -9/Mines Gunner | -9/Exiles Gunner | -8/Mines Gunner | -8/Materials Commander-Gunner | -8/Storage Gunner | -7/Factory Mutant | -6/Factory Commander-Mutant | -6/Extension Commander-Mutant | -6/Cetus Commander-Mutant | -6/Archives Commander-Mutant | -6/Hub_04(d) Resources | -11 -10 -10 -9 -9 -9 -8 -8 -8 -7 -6 -6 -6 -6 -6 ----------- Run | Scr Mat Min Mat Min Exi Min Mat Sto Fac Fac Ext Cet Arc Hub Matter Collected 4220 | 148 271 200 637 144 . 160 963 157 351 396 371 203 81 138 Remotely . | . . . . . . . . . . . . . . . Salvage Created 7540 | . 413 160 1007 212 . 217 938 465 1218 989 930 361 314 316 Parts 399 | . 34 11 66 14 . 8 47 16 56 44 43 10 32 18 Haulers Intercepted 14 | . 1 . 5 . . . 3 3 . 2 . . . . Recyclers Shooed 6 | . . . 2 . . . 1 . 2 1 . . . . Parts Field Recycled . | . . . . . . . . . . . . . . . Retrieved Matter . | . . . . . . . . . . . . . . . Parts Self-Destructed . | . . . . . . . . . . . . . . . Prevented . | . . . . . . . . . . . . . . . Kills | -11 -10 -10 -9 -9 -9 -8 -8 -8 -7 -6 -6 -6 -6 -6 ------- Run | Scr Mat Min Mat Min Exi Min Mat Sto Fac Fac Ext Cet Arc Hub Combat Hostiles Destroyed 135 | . 12 6 16 6 . 5 26 5 30 9 13 4 . 3 Melee 25 | . . . . . . . . . 1 9 12 . . 3 Guns 81 | . 12 6 16 6 . 4 17 5 15 . . . . . Cannons 20 | . . . . . . . 9 . 11 . . . . . AOE 2 | . . . . . . 1 . . 1 . . . . . Classes Destroyed 16 | . 4 . 4 1 . . 1 1 3 2 . . . . Worker 7 | . . . 4 . . . . . . 1 1 . . 1 Builder 2 | . . . . . . . . . 1 . . . . 1 Tunneler 1 | . . . 1 . . . . . . . . . . . Hauler 14 | . 1 . 5 . . . 3 3 . 2 . . . . Recycler 6 | . . . 1 . . . . . 2 2 1 . . . Operator 11 | . . . . . . . . 1 . . 1 . 9 . Watcher 5 | . 1 . 2 . . . . . . 1 . . . 1 Swarmer 38 | . 6 4 6 3 . . 7 . 10 1 1 . . . Grunt 59 | . 6 2 5 2 . 5 15 2 11 2 6 1 . 2 Brawler 2 | . . . . . . . 1 . . . . . . 1 Duelist 1 | . . . . . . . . . . 1 . . . . Sentry 23 | . . . 5 . . . 3 2 5 2 6 . . . Demolisher 2 | . . . . 1 . . . 1 . . . . . . Hunter 2 | . . . . . . . . . . 2 . . . . Programmer 4 | . . . . . . . . . 3 1 . . . . Heavy 1 | . . . . . . . . . 1 . . . . . Cetus Guard 3 | . . . . . . . . . . . . 3 . . Thug 2 | . . . . 1 . . . . . . . . . 1 Savage 1 | . . . . . . . . . . . . 1 . . Best Kill Streak 9 | . 3 2 9 2 . 3 8 3 5 2 2 3 5 2 Combat Bots Only 7 | . 3 2 4 2 . 3 7 2 5 2 2 3 . 1 Max Kills in Single Turn 2 | . 2 2 2 1 . 1 2 2 1 1 1 1 1 1 Gunslinging 1 | . 1 1 1 . . . 1 1 . . . . . . Exploded 1 | . . . . . . 1 . . 1 . . . . . Melee 1 | . . . . . . . . . 1 1 1 . . 1 Uniques/NPCs Destroyed 1 | . . . . . . . . 1 . . . . . . 01-MTF (-8/Storage) Combat | -11 -10 -10 -9 -9 -9 -8 -8 -8 -7 -6 -6 -6 -6 -6 -------- Run | Scr Mat Min Mat Min Exi Min Mat Sto Fac Fac Ext Cet Arc Hub Damage Taken 11873 | . 471 485 654 209 . 272 1453 282 2752 1572 1698 293 92 1640 Core 2164 | . 94 121 55 13 . . 200 109 662 241 217 84 24 344 Absorbed by Shields 344 | . . . . . . . . . . . 263 81 . . Regen/Repaired (Parts) 638 | . . . 205 . . . 116 . 79 238 . . . . Core Remaining (%) 49 | 100 . 14 . . . 83 . 43 5 . . . . . Volleys Fired 408 | . 54 23 52 16 . 14 72 85 84 . 1 7 . . Largest 3 | . 2 2 3 3 . 3 3 3 3 . 1 2 . . Hottest 240 | . 40 46 69 69 . 69 182 194 199 . 39 240 . . Shots Fired 896 | . 107 46 154 48 . 38 191 117 183 . 1 11 . . Gun 778 | . 107 46 153 48 . 36 137 107 142 . . 2 . . Cannon 102 | . . . . . . . 54 8 40 . . . . . Launcher 16 | . . . 1 . . 2 . 2 1 . 1 9 . . Special . | . . . . . . . . . . . . . . . Kinetic 575 | . 107 46 153 48 . 36 140 . 45 . . . . . Thermal 305 | . . . . . . . 51 115 137 . . 2 . . Explosive 6 | . . . 1 . . 2 . 2 . . 1 . . . Electromagnetic 10 | . . . . . . . . . 1 . . 9 . . Robot Hit Streak 23 | . 11 6 13 6 . 13 11 13 23 . . 2 . . Robot Miss Streak 9 | . 3 3 6 7 . 3 6 5 9 . 1 2 . . Penetration Max 1 | . . . . . . . 1 . . . . . . . Secondary Targets 14 | . 1 2 5 1 . 2 1 1 1 . . . . . Max Gunslinging Chain 1 | . 1 1 1 1 . 1 1 1 1 . . . . . Shots Hit Robots 719 | . 74 28 94 22 . 24 119 75 133 50 55 5 14 26 Core Hits 341 | . 29 8 42 11 . 12 84 20 66 19 22 8 10 10 Critical Kills 4 | . . 1 1 . . . 2 . . . . . . . Critical Parts Destroyed 9 | . . . 2 . . . . . . 2 5 . . . Critical Strikes 34 | . . 1 3 . . . 3 1 10 6 9 . . 1 Burn 6 | . . . . . . . 1 1 4 . . . . . Destroy 6 | . . 1 3 . . . 2 . . . . . . . Blast 4 | . . . . . . . . . 4 . . . . . Smash 8 | . . . . . . . . . . 2 6 . . . Sever 5 | . . . . . . . . . 2 1 1 . . 1 Impale 5 | . . . . . . . . . . 3 2 . . . Melee Attacks 229 | . . . . . . . . . 11 98 69 1 17 33 Impact 21 | . . . . . . . . . . 11 10 . . . Slashing 95 | . . . . . . . . . 11 15 37 1 5 26 Piercing 113 | . . . . . . . . . . 72 22 . 12 7 Sneak Attacks 24 | . . . . . . . . . 1 6 3 . 10 4 Combat Hostiles . | . . . . . . . . . . . . . . . Follow-up Attacks 42 | . . . . . . . . . . 12 20 . 2 8 Damage Inflicted 16782 | . 568 293 1664 415 . 540 2403 918 3392 1728 2471 487 831 1072 Guns 7375 | . 563 286 1563 376 . 386 1389 771 1963 . . 78 . . Cannons 2100 | . . . . . . . 999 111 990 . . . . . Explosions 903 | . . . 35 . . 154 . 34 75 . 223 382 . . Melee 6255 | . . . . . . . . . 349 1728 2248 27 831 1072 Ramming 149 | . 5 7 66 39 . . 15 2 15 . . . . . Kinetic 6050 | . 563 286 1563 376 . 386 1866 . 1010 . . . . . Thermal 3425 | . . . . . . . 522 882 1943 . . 78 . . Explosive 446 | . . . 35 . . 154 . 34 . . 223 . . . Electromagnetic 457 | . . . . . . . . . 75 . . 382 . . Impact 629 | . . . . . . . . . . 273 356 . . . Slashing 3035 | . . . . . . . . . 349 281 1326 27 152 900 Piercing 2591 | . . . . . . . . . . 1174 566 . 679 172 Highest Corruption 29 | . . . . . . . . . 6 1 25 29 29 22 Average Corruption 10 | . . . . . . . . . 4 1 14 21 20 17 Corruption Purged 29 | . . . . . . . . . . . 10 . 19 . Corruption Blocked . | . . . . . . . . . . . . . . . Effects 174 | . . . . . . . . . 37 12 66 17 25 17 Message Errors 46 | . . . . . . . . . 18 1 11 6 6 4 Matter Fused 38 | . . . . . . . . . 6 5 17 1 3 6 Heat Flow Errors 19 | . . . . . . . . . 1 1 9 1 4 3 Energy Discharges 22 | . . . . . . . . . 3 . 9 2 7 1 Parts Rejected 4 | . . . . . . . . . 1 1 2 . . . Data Loss (minor) 20 | . . . . . . . . . 6 1 7 3 2 1 Data Loss (major) 15 | . . . . . . . . . . 3 7 2 1 2 Misfires 1 | . . . . . . . . . . . . 1 . . Alerts 1 | . . . . . . . . . . . 1 . . . Misdirections 5 | . . . . . . . . . . . 3 . 2 . Weapon Failures 3 | . . . . . . . . . 2 . . 1 . . Overload Shots 2 | . . . . . . . . . . . . 2 . . Overflow Damage 905 | . . . . . . . 4 1 55 246 381 . 98 120 Projectiles 37 | . . . . . . . 4 1 32 . . . . . Explosions . | . . . . . . . . . . . . . . . Melee 868 | . . . . . . . . . 23 246 381 . 98 120 Knockbacks 29 | . . . 1 . . . 21 . 5 . 2 . . . Impact 3 | . . . 1 . . . . . . . 2 . . . Kinetic 24 | . . . . . . . 19 . 5 . . . . . Secondary 2 | . . . . . . . 2 . . . . . . . Self-Inflicted Damage 26 | . . . . . . . . 26 . . . . . . Shots 1 | . . . . . . . . 1 . . . . . . Rammed 2 | . 1 1 . . . . . . . . . . . . Targets Rammed 13 | . 2 1 3 2 . . 1 1 3 . . . . . Kicked 11 | . 1 . 3 2 . . 1 1 3 . . . . . Crushed . | . . . . . . . . . . . . . . . Highest Temperature 407 | . 37 22 54 77 . 102 407 192 282 113 210 204 263 267 Average Temperature 86 | . 13 11 11 22 . 45 133 92 100 58 81 104 120 121 Received Heat Transfer 3069 | . 264 48 186 99 . 171 702 57 666 195 493 44 18 126 Effects 9 | . . . . . . . 4 . 2 . . . 3 . Shutdowns 1 | . . . . . . . 1 . . . . . . . Energy Bleed 2 | . . . . . . . . . 2 . . . . . Interference 5 | . . . . . . . 2 . . . . . 3 . Matter Decay 1 | . . . . . . . 1 . . . . . . . Siege Activations . | . . . . . . . . . . . . . . . Robots Corrupted 4 | . . . . . . . . . . . . 4 . . Combat Hostiles 4 | . . . . . . . . . . . . 4 . . Parts Fried 10 | . . . . . . . . 1 . . 4 5 . . Impact Corruptions 13 | . . . . . . . 1 . . 6 6 . . . Robots Melted 3 | . . . . . . . . 1 2 . . . . . Combat Hostiles 2 | . . . . . . . . . 2 . . . . . Parts Melted 20 | . . . . . . . 2 2 15 . 1 . . . Heat Transferred 8525 | . . . . . . . 1184 2914 4377 . . 50 . . Parts Sabotaged . | . . . . . . . . . . . . . . . Parts Stolen . | . . . . . . . . . . . . . . . Parts Stripped . | . . . . . . . . . . . . . . . Power Chain Reactions . | . . . . . . . . . . . . . . . Missiles Intercepted . | . . . . . . . . . . . . . . . Alert | -11 -10 -10 -9 -9 -9 -8 -8 -8 -7 -6 -6 -6 -6 -6 ------- Run | Scr Mat Min Mat Min Exi Min Mat Sto Fac Fac Ext Cet Arc Hub Peak Influence 1092 | . 254 168 452 118 . 118 582 885 566 324 1076 1054 633 1092 Initial 602 | . . 28 . 88 . . 45 118 193 277 71 602 421 151 Average 288 | . 128 93 240 61 . 63 273 425 445 162 421 836 558 677 Maximum Alert Level 3 | . 1 . 2 . . . 2 3 2 1 3 3 2 3 Low Security (%) 43 | 100 77 100 21 100 . 100 34 18 1 63 25 . . 15 Level 1 28 | . 22 . 74 . . . 46 24 21 36 36 . . 10 Level 2 21 | . . . 4 . . . 19 41 77 . 25 14 100 23 Level 3 6 | . . . . . . . . 15 . . 12 85 . 51 Level 4 . | . . . . . . . . . . . . . . . Level 5 . | . . . . . . . . . . . . . . . High Security . | . . . . . . . . . . . . . . . Max Security . | . . . . . . . . . . . . . . . Squads Dispatched 41 | . 4 . 1 1 . 1 4 2 9 6 5 . . 8 Investigation 13 | . 3 . 1 1 . 1 1 . . 4 2 . . . Extermination 4 | . . . . . . . . . 2 2 . . . . Reinforcement 15 | . 1 . . . . . 3 . 1 . 3 . . 7 Assault 2 | . . . . . . . . 1 . . . . . 1 Garrison 7 | . . . . . . . . 1 6 . . . . . Intercept . | . . . . . . . . . . . . . . . Searches Triggered . | . . . . . . . . . . . . . . . Construction Impeded 2 | . . . . . . . 1 . . . 1 . . . Haulers Reinforced . | . . . . . . . . . . . . . . . Active Scanning Responses . | . . . . . . . . . . . . . . . Cargo Convoy Interrupts 1 | . . . . . . . . . 1 . . . . . Stealth | -11 -10 -10 -9 -9 -9 -8 -8 -8 -7 -6 -6 -6 -6 -6 --------- Run | Scr Mat Min Mat Min Exi Min Mat Sto Fac Fac Ext Cet Arc Hub Distress Signals 13 | . . . 3 . . . 2 2 . 1 2 1 . 2 Communications Jammed 9 | . . . . . . . . . . . . . . 9 Distress Signals 2 | . . . . . . . . . . . . . . 2 Times Spotted 278 | . 21 8 26 9 . 5 33 27 40 19 47 11 4 28 Peak Tracking Total 7 | . 4 3 5 4 . 2 6 6 7 3 6 5 2 7 Tactical Retreats 12 | . 1 . . 1 . . 1 1 4 2 . 1 . 1 Traps | -11 -10 -10 -9 -9 -9 -8 -8 -8 -7 -6 -6 -6 -6 -6 ------- Run | Scr Mat Min Mat Min Exi Min Mat Sto Fac Fac Ext Cet Arc Hub Traps Triggered 5 | . . . . . . . . . 1 1 3 . . . Indirectly . | . . . . . . . . . . . . . . . Trap Hack Attempts . | . . . . . . . . . . . . . . . Triggered . | . . . . . . . . . . . . . . . Disarmed . | . . . . . . . . . . . . . . . Reprogrammed . | . . . . . . . . . . . . . . . Reused . | . . . . . . . . . . . . . . . Traps Extracted . | . . . . . . . . . . . . . . . Installed . | . . . . . . . . . . . . . . . Triggered 2 | . . 1 . . . . . . 1 . . . . . Machines | -11 -10 -10 -9 -9 -9 -8 -8 -8 -7 -6 -6 -6 -6 -6 ---------- Run | Scr Mat Min Mat Min Exi Min Mat Sto Fac Fac Ext Cet Arc Hub Machines Disabled 20 | . . . 3 1 . . 3 1 . 1 5 4 1 1 Max in Single Turn 2 | . . . 2 1 . . 1 1 . 1 1 1 . . Garrison Access 4 | . . . . . . . . 1 . 2 . . . 1 Energy Cycler 2 | . . . . . . . . . . . 2 . . . Machines Sabotaged . | . . . . . . . . . . . . . . . Garrisons Compromised 1 | . . . . . . . . . 1 . . . . . Overloaded Fab Kills . | . . . . . . . . . . . . . . . Hacking | -11 -10 -10 -9 -9 -9 -8 -8 -8 -7 -6 -6 -6 -6 -6 --------- Run | Scr Mat Min Mat Min Exi Min Mat Sto Fac Fac Ext Cet Arc Hub Machines Accessed 69 | . 8 . 10 1 1 1 5 6 7 17 10 . . 3 Terminals 48 | . 6 . 7 . . 1 3 5 4 10 10 . . 2 Fabricators 3 | . . . . . . . . . 1 2 . . . . Repair Stations 6 | . . . 2 . . . 1 . 1 2 . . . . Recycling Units 4 | . 2 . 1 . . . 1 . . . . . . . Scanalyzers 2 | . . . . . . . . . 1 1 . . . . Garrison Access 4 | . . . . . . . . 1 . 2 . . . 1 Total Hacks 191 | . 32 . 25 1 1 3 14 24 20 42 23 . . 6 Successful 123 | . 18 . 20 1 1 1 11 14 16 29 11 . . 1 Failed 67 | . 13 . 5 . . 2 3 10 4 13 12 . . 5 Catastrophic 3 | . . . . . . . . . 1 1 1 . . . Database Lockouts 1 | . 1 . . . . . . . . . . . . . Manual 118 | . 27 . 21 . . 3 9 17 7 19 9 1 . 5 Terminals 140 | . 24 . 19 . . 3 10 21 11 24 23 . . 5 Fabricators 6 | . . . . . . . . . 1 5 . . . . Repair Stations 17 | . . . 4 . . . 2 . 5 6 . . . . Recycling Units 12 | . 8 . 2 . . . 2 . . . . . . . Scanalyzers 5 | . . . . . . . . . 3 2 . . . . Garrison Access 9 | . . . . . . . . 3 . 5 . . . 1 Terminal Hacks 52 | . 8 . 9 1 1 1 3 10 3 8 8 . . . Record 2 | . . . . . 1 . . . . 1 . . . . Part Schematic 1 | . 1 . . . . . . . . . . . . . Robot Analysis 8 | . 3 . 2 . . 1 . 2 . . . . . . Prototype ID Bank 2 | . . . 1 . . . . 1 . . . . . . Open Door 8 | . . . . 1 . . . 1 . 1 5 . . . Branch Access Points 2 | . . . . . . . . . 1 1 . . . . Terminal Index 9 | . 1 . 3 . . . 1 1 1 1 1 . . . Alert Level 6 | . . . . . . . 1 2 . 1 2 . . . Unreport Threat 5 | . . . . . . . 1 3 . 1 . . . . Locate Traps 3 | . 2 . . . . . . . 1 . . . . . Transport Status 1 | . . . 1 . . . . . . . . . . . Hauler Manifests 1 | . . . 1 . . . . . . . . . . . Zone Layout 4 | . 1 . 1 . . . . . . 2 . . . . Fabricator Hacks 5 | . . . . . . . . . 1 4 . . . . Network Status 2 | . . . . . . . . . 1 1 . . . . Load Schematic 1 | . . . . . . . . . . 1 . . . . Build 2 | . . . . . . . . . . 2 . . . . Repair Station Hacks 17 | . . . 4 . . . 2 . 5 6 . . . . Scan Component 8 | . . . 2 . . . 1 . 2 3 . . . . Repair 8 | . . . 2 . . . 1 . 2 3 . . . . Refit 1 | . . . . . . . . . 1 . . . . . Recycling Unit Hacks 3 | . 1 . 1 . . . 1 . . . . . . . Retrieve Components 3 | . 1 . 1 . . . 1 . . . . . . . Scanalyzer 5 | . . . . . . . . . 3 2 . . . . Insert Component 3 | . . . . . . . . . 2 1 . . . . Analyze 2 | . . . . . . . . . 1 1 . . . . Garrison Access Hacks 3 | . . . . . . . . 1 . 1 . . . 1 Seal Access 3 | . . . . . . . . 1 . 1 . . . 1 Unauthorized Hacks 38 | . 9 . 6 . . . 5 3 4 8 3 . . . Terminals 33 | . 7 . 5 . . . 4 3 4 7 3 . . . Assimilate 2 | . 1 . . . . . . . . 1 . . . . Botnet 25 | . 4 . 4 . . . 3 3 4 5 2 . . . Operators 5 | . 1 . 1 . . . 1 . . 1 1 . . . Sabotage 1 | . 1 . . . . . . . . . . . . . Fabricators . | . . . . . . . . . . . . . . . Repair Stations . | . . . . . . . . . . . . . . . Recycling Units 4 | . 2 . 1 . . . 1 . . . . . . . Tunnel 4 | . 2 . 1 . . . 1 . . . . . . . Scanalyzers . | . . . . . . . . . . . . . . . Garrison Access 1 | . . . . . . . . . . 1 . . . . Jam 1 | . . . . . . . . . . 1 . . . . Data Cores Recovered . | . . . . . . . . . . . . . . . Used . | . . . . . . . . . . . . . . . Hacking Detections 57 | . 7 . 9 . . 1 4 4 7 15 8 . . 2 Full Trace Events 5 | . . . . . . 1 . . . 2 2 . . . Feedback Events . | . . . . . . . . . . . . . . . Feedback Blocked . | . . . . . . . . . . . . . . . Robot Schematics Acquired . | . . . . . . . . . . . . . . . Robots Built 3 | . . . . . . . . . . 3 . . . . Authchips . | . . . . . . . . . . . . . . . Time 134 | . . . . . . . . . . 134 . . . . Total Robot Build Rating 12 | . . . . . . . . . . 12 . . . . Part Schematics Acquired 3 | . 1 . . . . . . . 1 1 . . . . Parts Built 2 | . . . . . . . . . . 2 . . . . Authchips . | . . . . . . . . . . . . . . . Time 95 | . . . . . . . . . . 95 . . . . Total Part Build Rating 10 | . . . . . . . . . . 10 . . . . Parts Repaired 8 | . . . 2 . . . 1 . 2 3 . . . . Time 362 | . . . 64 . . . 38 . 114 146 . . . . Parts Recycled . | . . . . . . . . . . . . . . . Recycled Matter . | . . . . . . . . . . . . . . . Retrieved Matter . | . . . . . . . . . . . . . . . Retrieved Components 19 | . . . 9 . . . 10 . . . . . . . Parts Scanalyzed 2 | . . . . . . . . . 1 1 . . . . Part Schematics Acquired 2 | . . . . . . . . . 1 1 . . . . Parts Damaged 1 | . . . . . . . . . . 1 . . . . Bothacking | -11 -10 -10 -9 -9 -9 -8 -8 -8 -7 -6 -6 -6 -6 -6 ------------ Run | Scr Mat Min Mat Min Exi Min Mat Sto Fac Fac Ext Cet Arc Hub Used RIF Installer . | . . . . . . . . . . . . . . . Robots Hacked . | . . . . . . . . . . . . . . . Non-combat . | . . . . . . . . . . . . . . . Combat . | . . . . . . . . . . . . . . . Robot Hacks Applied . | . . . . . . . . . . . . . . . Relay Couplers Released . | . . . . . . . . . . . . . . . Fabnet Peak Effective % . | . . . . . . . . . . . . . . . Robots Rewired 22 | . . . . . . . . . . . 22 . . . Allies Hacked . | . . . . . . . . . . . . . . . Hacks Repelled . | . . . . . . . . . . . . . . . Allies | -11 -10 -10 -9 -9 -9 -8 -8 -8 -7 -6 -6 -6 -6 -6 -------- Run | Scr Mat Min Mat Min Exi Min Mat Sto Fac Fac Ext Cet Arc Hub Total Allies 50 | . 1 . . 3 . . . 11 . 4 29 2 . . Largest Group 19 | . 1 1 1 2 1 . . 10 . 3 19 19 18 14 Highest-Rated Group 727 | . 10 10 10 41 10 . . 257 . 90 605 727 707 469 Highest-Rated Ally 159 | . 10 10 10 31 10 . . 100 . 30 159 159 159 96 Total Orders 28 | . 5 2 2 . . . . . . 9 3 3 4 . STAY 14 | . 4 1 1 . . . . . . 2 2 2 2 . FOLLOW 9 | . 1 1 1 . . . . . . 2 1 1 2 . EXPLORE 5 | . . . . . . . . . . 5 . . . . Ally Attacks 477 | . . . . 4 . . . 120 . 15 171 47 20 100 Total Damage 12160 | . . . . 43 . . . 2631 . 388 4320 1213 522 3043 Kills 95 | . . . . 1 . . . 26 . 3 30 7 4 24 Allies Corrupted 3 | . . . . . . . . . . . 3 . . . Allies Melted . | . . . . . . . . . . . . . . . Intel | -11 -10 -10 -9 -9 -9 -8 -8 -8 -7 -6 -6 -6 -6 -6 ------- Run | Scr Mat Min Mat Min Exi Min Mat Sto Fac Fac Ext Cet Arc Hub Robot Analysis Total 8 | . 3 . 2 . . 1 . 2 . . . . . . Derelict Logs Recovered 4 | . . 2 . 2 . . . . . . . . . . Drone Launches 5 | . . . . . . . . . . 5 . . . . Drone Recoveries 3 | . . . . . . . . . . 3 . . . . Exploration | -11 -10 -10 -9 -9 -9 -8 -8 -8 -7 -6 -6 -6 -6 -6 ------------- Run | Scr Mat Min Mat Min Exi Min Mat Sto Fac Fac Ext Cet Arc Hub Turns Passed 13071 | 73 1122 412 1431 1369 357 154 884 789 1434 2308 1521 314 530 373 Spaces Moved 6974 | 53 654 211 715 647 177 50 433 441 512 1609 888 191 209 184 Core 15 | 3 . . 3 . . . . . 5 . . . . 4 Treads 962 | . 319 211 337 . . . . . 95 . . . . . Legs 5007 | 50 335 . 375 647 177 50 433 441 280 751 888 191 209 180 Wheels 990 | . . . . . . . . . 132 858 . . . . Hover . | . . . . . . . . . . . . . . . Flight . | . . . . . . . . . . . . . . . Fastest Speed 50 | 50 120 160 130 200 200 200 117 110 80 80 97 120 120 50 Average Speed 138 | 116 139 160 156 200 200 200 134 122 162 103 116 120 120 164 Slowest Speed 900 | 120 190 160 600 200 200 200 270 192 750 260 400 190 120 900 Overloaded Moves . | . . . . . . . . . . . . . . . Propulsion Burnouts . | . . . . . . . . . . . . . . . Robots Hopped . | . . . . . . . . . . . . . . . Cave-ins Triggered . | . . . . . . . . . . . . . . . Exploration Rate (%) 53 | 4 74 50 75 99 53 17 39 79 14 42 87 66 88 17 Regions Visited 14 Branch Regions 9 Pre-discovered Areas 6 | . 2 1 1 . 1 . 1 . . . . . . . Known Exits Taken 3 | . . . . . . . 1 1 . 1 . . . . Unknown Exits Taken 11 | 1 1 1 1 1 1 1 . . 1 . 1 1 1 . Scrap Searched 4 | . . 1 . 3 . . . . . . . . . . Spaces Dug 37 | . . . 8 . . 10 . . 1 16 1 . . 1 Terrain Destroyed 125 | . . . 34 . . 22 . 27 13 16 12 . . 1 Melee 19 | . . . . . . . . . 1 16 1 . . 1 Projectile 12 | . . . . . . . . . 12 . . . . . AOE 94 | . . . 34 . . 22 . 27 . . 11 . . . Terrain Rammed . | . . . . . . . . . . . . . . . Walls Destroyed . | . . . . . . . . . . . . . . . Machines Disabled . | . . . . . . . . . . . . . . . Actions | -11 -10 -10 -9 -9 -9 -8 -8 -8 -7 -6 -6 -6 -6 -6 --------- Run | Scr Mat Min Mat Min Exi Min Mat Sto Fac Fac Ext Cet Arc Hub Total 9396 | 61 778 245 911 685 182 74 587 587 916 2127 1301 258 466 218 Wait 1251 | . 37 8 91 13 . 6 35 27 259 373 117 44 241 . Move 6960 | 52 653 210 714 646 176 49 432 440 511 1608 887 190 208 184 Hop . | . . . . . . . . . . . . . . . Pick Up 131 | 3 18 . 17 8 3 1 13 6 17 31 13 1 . . Fast Attach 101 | 6 3 1 6 . . 1 7 9 14 19 19 3 4 9 Attach 45 | . 2 . 5 . . 1 8 . 11 5 9 2 . 2 Detach 6 | . . . . . . . 1 . . 1 3 . 1 . Swap 35 | . 2 2 4 . . 2 5 4 . 2 5 8 . 1 Drop 90 | . 7 . 19 . 3 . 13 15 6 18 6 2 . 1 Fire 408 | . 54 23 52 16 . 14 72 85 84 . 1 7 . . Melee 161 | . . . . . . . . . 11 70 46 1 12 21 Ram . | . . . . . . . . . . . . . . . Kick 11 | . 1 . 3 2 . . 1 1 3 . . . . . Crush 2 | . 1 1 . . . . . . . . . . . . Escape Stasis 5 | . . . . . . . . . . . 5 . . . Rewire 190 | . . . . . . . . . . . 190 . . . Trap . | . . . . . . . . . . . . . . . Miscellaneous . | . . . . . . . . . . . . . . . Route ------- -11/Scrapyard -10/Materials (discovered 2 exits: *Mat / [*Min]) -10/Mines -9/Materials (discovered 3 exits: *Mat x2 / *Min) -9/Mines (discovered 3 exits: *Mat x2 / *Exi) -9/Exiles -8/Mines -8/Materials (discovered 2 exits: Fac / *Sto) -8/Storage -7/Factory (discovered 3 exits: *Fac / *Low x2) -6/Factory (discovered 6 exits: [*Fac x2] / Low x2 / *Ext x2) -6/Extension (discovered 2 exits: [*Fac] / *Cet) -6/Cetus -6/Archives (discovered 3 exits: [*Fac] / *Hub x2) -6/Hub_04(d) (discovered 1 exit: [*Fac]) History --------- Turn | Location | Event 4 | -11/Scrapyard | Discovered new exit (range 15) 74 | -11/Scrapyard | Entered Materials 310 | -10/Materials | Build established: Mutant 328 | -10/Materials | Discovered new exit (range 16) 369 | -10/Materials | Central database locked down 731 | -10/Materials | Discovered new exit (range 7) 1196 | -10/Materials | Entered Mines 1196 | -10/Mines | Accompanied by 1 ally 1217 | -10/Mines | Core integrity fell below 50% 1377 | -10/Mines | Core integrity fell below 20% 1578 | -10/Mines | Discovered new exit (range 10) 1594 | -10/Mines | Learned Materials security intel 1608 | -10/Mines | Entered Materials 1608 | -9/Materials | Accompanied by 1 ally 1608 | -9/Materials | Evolved 2 slots: Propulsion x1, Weapon x1 1922 | -9/Materials | Build established: Gunner 1944 | -9/Materials | Discovered new exit (range 16) 2260 | -9/Materials | Repaired Hvy. Assault Rifle 2438 | -9/Materials | Discovered new exit (range 9) 2742 | -9/Materials | Repaired Hvy. Assault Rifle 2794 | -9/Materials | Discovered new exit (range 16) 3039 | -9/Materials | Entered Mines 3040 | -9/Mines | Assembled infested the area 3053 | -9/Mines | Met a Derelict bent on vengeance 3137 | -9/Mines | Met 8R-AWN 3211 | -9/Mines | Learned 2 Materials zone layouts 3231 | -9/Mines | Discovered new exit (range 10) 3248 | -9/Mines | Received a Mining Laser from a helpful Derelict 3340 | -9/Mines | Discovered new exit (range 5) 3504 | -9/Mines | Discovered new exit (range 9) 3691 | -9/Mines | Learned location of 1 exit from Proximity Caves 4122 | -9/Mines | Met a Derelict shopkeep closing up shop 4408 | -9/Mines | Entered Exiles 4408 | -9/Exiles | Accompanied by 1 ally 4456 | -9/Exiles | Welcomed by 8R-AWN 4490 | -9/Exiles | Met EX-HEX 4624 | -9/Exiles | Met EX-DEC 4656 | -9/Exiles | Learned location of Zion (-7) 4749 | -9/Exiles | Discovered new exit (range 10) 4765 | -9/Exiles | Entered Mines 4843 | -8/Mines | Discovered new exit (range 5) 4919 | -8/Mines | Entered Materials 4919 | -8/Materials | Evolved 2 slots: Propulsion x1, Utility x1 4920 | -8/Materials | Identified exit to Storage 4920 | -8/Materials | Identified exit to Factory 5239 | -8/Materials | Repaired Titanium Leg? 5333 | -8/Materials | Destroyed 7 combat bots 5803 | -8/Materials | Entered Storage 5947 | -8/Storage | Assisted by bots powering up and referring to "LRC-V3" 5992 | -8/Storage | Met 01-MTF 6064 | -8/Storage | Garrison activated, responded to threat 6203 | -8/Storage | First assault squad dispatched 6212 | -8/Storage | Found Prototype Processor 6252 | -8/Storage | Core integrity fell below 50% 6373 | -8/Storage | Discovered exit to Factory (range 16) 6587 | -8/Storage | Destroyed 01-MTF 6592 | -8/Storage | Entered Factory 6592 | -7/Factory | Evolved 2 slots: Propulsion x2 6843 | -7/Factory | Discovered new exit (range 16) 6889 | -7/Factory | Identified Exp. Targeting Computer 6994 | -7/Factory | Discovered new exit (range 14) 7008 | -7/Factory | Garrison activated, responded to threat 7191 | -7/Factory | Lost 5 parts (1p4n) 7290 | -7/Factory | Repaired Corrupted Hvy. Assault Cannon 7351 | -7/Factory | Repaired Corrupted Transmission Jammer 7374 | -7/Factory | Garrison activated, responded to threat 7418 | -7/Factory | Lost 3 parts (1p1n1w) 7518 | -7/Factory | Core integrity fell below 50% 7547 | -7/Factory | Lost 3 parts (1n2w) 7821 | -7/Factory | Cargo convoy interrupted 7823 | -7/Factory | Core integrity fell below 20% 7855 | -7/Factory | Lost 4 parts (2n2w) 7973 | -7/Factory | Identified exit to Lower Caves 8026 | -7/Factory | Entered another Factory area 8026 | -6/Factory | Evolved 2 slots: Utility x1, Weapon x1 8061 | -6/Factory | Discovered new exit (range 14) 8231 | -6/Factory | Build established: Scavenger-Mutant 8445 | -6/Factory | Spotted B-75 Beast 8602 | -6/Factory | Repaired Broken Imp. VSS Leg 8629 | -6/Factory | Repaired Hcp. Storage Unit 8730 | -6/Factory | Discovered new exit (range 4) 9079 | -6/Factory | Fabricated L-41 Fighter (x3) 9177 | -6/Factory | Fabricated Imp. VSS Leg? 9209 | -6/Factory | Lost 4 parts (4n) 9406 | -6/Factory | Lost 3 parts (3n) 9471 | -6/Factory | Build established: Mutant 9845 | -6/Factory | Repaired Imp. VSS Leg 9857 | -6/Factory | Identified exit to Lower Caves 9857 | -6/Factory | Identified exit to Extension 10334 | -6/Factory | Entered Extension 10388 | -6/Extension | Rescued A7 10549 | -6/Extension | System corruption reached 10% 10675 | -6/Extension | Rescued a captive Derelict 10692 | -6/Extension | Rescued a captive Derelict 10720 | -6/Extension | Rescued a captive Derelict 10803 | -6/Extension | Rescued a captive Derelict 10900 | -6/Extension | Build established: Commander-Mutant 11071 | -6/Extension | Spotted B-75 Beast 11081 | -6/Extension | Spotted B-75 Beast 11086 | -6/Extension | Allies destroyed B-75 Beast 11104 | -6/Extension | Allies destroyed B-75 Beast 11144 | -6/Extension | Lost 7 parts (4n1u2w) 11224 | -6/Extension | Rescued a captive Derelict 11238 | -6/Extension | Rescued a captive Derelict 11353 | -6/Extension | Core integrity fell below 50% 11665 | -6/Extension | Energy Cycler disabled 11764 | -6/Extension | Discovered new exit (range 10) 11766 | -6/Extension | Discovered new exit (range 6) 11855 | -6/Extension | Entered Cetus 11855 | -6/Cetus | Accompanied by 18 allies (A7) 11860 | -6/Cetus | Acquired a Cetus Manufacturing Module code from A7 11876 | -6/Cetus | Spotted Cetus Guard 11876 | -6/Cetus | Spotted Cetus Guard 11878 | -6/Cetus | Spotted Cetus Guard 11884 | -6/Cetus | Destroyed Cetus Guard 11886 | -6/Cetus | Destroyed Cetus Guard 11886 | -6/Cetus | Spotted Cetus Guard 11889 | -6/Cetus | Destroyed Cetus Guard 11901 | -6/Cetus | Allies destroyed Cetus Guard 11977 | -6/Cetus | Started Cetus Manufacturing Module 12002 | -6/Cetus | Manufactured an Enhanced Grunt 12027 | -6/Cetus | Manufactured an Enhanced Grunt 12043 | -6/Cetus | Cetus Manufacturing Module disabled 12085 | -6/Cetus | Escorted A7 to Cetus Mainframe 12107 | -6/Cetus | Discovered new exit (range 16) 12169 | -6/Cetus | Entered Archives 12169 | -6/Archives | Accompanied by 18 allies (A7) 12174 | -6/Archives | Received a hacking code to weaken MAIN.C 12201 | -6/Archives | Discovered new exit (range 16) 12216 | -6/Archives | Discovered new exit (range 15) 12394 | -6/Archives | Discovered new exit (range 16) 12699 | -6/Archives | Entered Hub_04(d) 12699 | -6/Hub_04(d) | Accompanied by 14 allies 12797 | -6/Hub_04(d) | Discovered new exit (range 11) 12905 | -6/Hub_04(d) | Core integrity fell below 20% 12940 | -6/Hub_04(d) | Lost 9 parts (1p6n1u1w) 13049 | -6/Hub_04(d) | First assault squad dispatched 13071 | -6/Hub_04(d) | Released all parts (7) 13072 | -6/Hub_04(d) | Destroyed by H-61 Shepherd with Heavy Assault Cannon Last Messages --------------- 13070_ Carbon-fiber Leg destroyed. 13070_ Lgt. Angular Momentum Engine destroyed. 13070_ Carbon-fiber Leg destroyed. 13070_ Knocked back. 13071_ 41-MQ5(l) destroyed. 13071_ Slug penetrates L-41 Fighter. 13071_ Slug penetrates Wall. 13071_ Released Hcp. Storage Unit. 13071_ Authchip [Storage] crushed and broken. 13071_ Imp. Signal Interpreter crushed and broken. 13071_ Released Ripper. 13071_ Ripper crushed and broken. 13071_ Released Ripper. 13071_ Ripper crushed and broken. 13071_ Released Melee Analysis Suite. 13071_ Released Phasing Sabre. 13071_ Phasing Sabre crushed and broken. 13071_ Released Imp. Hacking Suite. 13071_ Released Spear. 13071_ Spear crushed and broken. Map ----- +----------------------------------------------------+ | ???# # #??????????? ???????????????? | | ???# # """" ###????????? #???????????????? | | ???# # """" + ?????????? #?????????????###+# | | ???# # """" #??? ???????# ###??????##???# ? | | ???# / """" #??? ???????# # ?????? #???# ? | | ???# # *#??? ???????# +??????? #???# #? | | ???# # #??? ???????# #?????? ????# #? | | ???# ##############+########%#######/####??#*[#? | | ???# ########## ##% [!%!== %+![%!*#?## %#? | | ???# # # """ ##[############!*"%%#?##!!## | | ???# # """ " # %##%#??????????#![!!%###*%% # | | ???# # "G " # """ +%*#?????????##%"""%+%% %!%# | | ???# # """ " # % #u #?########## *!%!###!! # | | ???# # #="""H#%k### """"" #[""" #?#*%% # | | ???# / " " !+% % #b ## ""T"" # %%#?###### | | ???# # " " " *# """ + g / !# """ #??????= | | ???# # " " " # %#g% ## # #??????? | | ???# # # """%#/%= # # """ #??????? | | ???# ########## !%u;/% ## """" # #??????? | | ??? ????????# """ ;% [!# """" # """ #??????? | | ??# ????????# %;*l!!# """" # #??????? | | ??/ T ????????# """=;%[%%# """" # """ #??????? | | ? # ????????# /]!=!%######+### #??????? | | ?# #???????######!!=!!#???? ??#+?##???????? | | ?###+###????????????##=%!]#???? ??? ??????????? | | ??????????????????????#%*@!#???? ??? ??????????? | | ??????????????????????#[*%##???? ??????????????? | | ??????????????????????#!%=#????? ??????????????? | | ?????????????????????;; %!#????? #?????????????? | | ???????????????????? ; %% R????? #?????????????? | | ??????????????????? ;hxHh ????? ??????????????? | | ?????????????????? ; < ?????????????????????? | | ????????????????? ; ?????????????????????? | | ??????????????? # ##????????????????????? | | ?????????????? ## ##?????????????????????? | | ?????????????? ??# #??????????????????????? | | ??????????????###+##??# ??????????????????????? | | ?????????????????????? ???????????????????????? | | ?????????????????????? ???????????????????????? | | ??????????????????????##+#???????????????????????? | | ?????????????????????????????????????????????????? | | ?????????????????????????????????????????????????? | | ?????????????????????????????????????????????????? | | ?????????????????????????????????????????????????? | | ?????????????????????????????????????????????????? | | ?????????????????????????????????????????????????? | | ?????????????????????????????????????????????????? | | ?????????????????????????????????????????????????? | | ?????????????????????????????????????????????????? | | ?????????????????????????????????????????????????? | +----------------------------------------------------+ Best States ------------- Heat Dissipation 50 Coolant Potential 65 Energy Generation 18 Energy Capacity 650 Matter Stores 300 Matter Capacity 300 Sight Range 22 Terrain Scan Density 10 ECM Strength 2 Jamming Range 12 EM Shielding 2 Armor Coverage 225 Melee Speed Boost 20 Evasion (%) 60 Targeting Accuracy 6 Melee Accuracy 10 Recoil Reduction 3 Offensive Hacking 12 Authchip Count 1 Item Schematics ----------------- Huge Storage Unit | -10/Materials | Hacked VSS Leg | -7/Factory | Scanalyzed Imp. VSS Leg | -6/Factory | Scanalyzed Robot Schematics ------------------ None Fabricated ------------ L-41 Fighter | x3 | -6/Factory | Preloaded Imp. VSS Leg | x2 | -6/Factory Alien Tech Used ----------------- None Achievements -------------- None Challenges ------------ None Game ------ Seed ImpulseShadingPick Manual? 0 Play Time 01:28:56 Cumulative 224.4 hours Start 2022.03.26 @ 23:03:36 End 2022.03.27 @ 18:22:30 Sessions 2 Manual Loads 0 Difficulty Rogue Special Mode None Game No. 326 Rogue 304 Adventurer 4 Explorer 18 Win Type - Total 10 Types 8/0/0/2/0/0/0/0/0 Lore% 69 Gallery% 87 Achievement% 71 Wizard Run 0 Options --------- ASCII 0 Keyboard 1 Movement Numpad Keybinds 0 Fullscreen 1 Font 18/SmallcapsGlow Map View 76x50 Tactical HUD 1 Map Filters NONE Filters NONE Steam 1 RUN: 4300054f-9729-447a-a272-405e80e340fe